[Event "Early-Titled-Tuesday-Blitz-March-05-2024"]
[Site "Chess.com"]
[Date "2024.03.05"]
[Round "8"]
[White "FredddieCroderg"]
[Black "marik_spb"]
[Result "0-1"]
[WhiteElo "2284"]
[BlackElo "2450"]
[TimeControl "180+1"]
[EndTime "9:29:57 PST"]
[Termination "marik_spb won by resignation"]

1. e4 {[%clk 0:03:00.9]} 1... e6 {[%clk 0:02:59]} 2. d4 {[%clk 0:02:59.1]} 2...
d5 {[%clk 0:02:59.9]} 3. exd5 {[%clk 0:02:59.5]} 3... exd5 {[%clk 0:03:00]} 4.
Bd3 {[%clk 0:03:00]} 4... Nf6 {[%clk 0:02:55.8]} 5. Nf3 {[%clk 0:02:59.9]} 5...
c5 {[%clk 0:02:55.9]} 6. c3 {[%clk 0:02:59.6]} 6... Nc6 {[%clk 0:02:51.9]} 7.
O-O {[%clk 0:02:59.6]} 7... Be7 {[%clk 0:02:46]} 8. dxc5 {[%clk 0:02:59.3]} 8...
Bxc5 {[%clk 0:02:44.8]} 9. Nbd2 {[%clk 0:02:58.7]} 9... O-O {[%clk 0:02:44.7]}
10. Nb3 {[%clk 0:02:58.5]} 10... Be7 {[%clk 0:02:37.8]} 11. Nfd4 {[%clk
0:02:54.7]} 11... Bg4 {[%clk 0:02:34.2]} 12. Qc2 {[%clk 0:02:53.4]} 12... Bh5
{[%clk 0:02:34.6]} 13. Bg5 {[%clk 0:02:52.1]} 13... Bg6 {[%clk 0:02:33.3]} 14.
Bxg6 {[%clk 0:02:51.3]} 14... hxg6 {[%clk 0:02:32.4]} 15. Rae1 {[%clk
0:02:50.8]} 15... Re8 {[%clk 0:02:31.5]} 16. Re3 {[%clk 0:02:49]} 16... Ne4
{[%clk 0:02:28.2]} 17. Bxe7 {[%clk 0:02:47.7]} 17... Nxe7 {[%clk 0:02:25.6]} 18.
Rfe1 {[%clk 0:02:43.7]} 18... Nf6 {[%clk 0:02:02.8]} 19. Qe2 {[%clk 0:02:39.1]}
19... Nc6 {[%clk 0:02:01.9]} 20. Rxe8+ {[%clk 0:02:38]} 20... Qxe8 {[%clk
0:02:02.8]} 21. Qxe8+ {[%clk 0:02:36.7]} 21... Rxe8 {[%clk 0:02:03.7]} 22. Rxe8+
{[%clk 0:02:36.1]} 22... Nxe8 {[%clk 0:02:04.6]} 23. Nc5 {[%clk 0:02:34.2]}
23... Nxd4 {[%clk 0:02:01.2]} 24. cxd4 {[%clk 0:02:33.4]} 24... Nd6 {[%clk
0:02:00.5]} 25. Kf1 {[%clk 0:02:24.2]} 25... b6 {[%clk 0:01:54.6]} 26. Nb3
{[%clk 0:02:23.2]} 26... f6 {[%clk 0:01:54]} 27. Ke2 {[%clk 0:02:17.9]} 27...
Nc4 {[%clk 0:01:51.8]} 28. Nd2 {[%clk 0:02:17.5]} 28... Nxb2 {[%clk 0:00:46.6]}
29. Nf1 {[%clk 0:02:16.9]} 29... Nc4 {[%clk 0:00:45.4]} 30. Kd3 {[%clk
0:02:13.8]} 30... Kf7 {[%clk 0:00:45.6]} 31. Ng3 {[%clk 0:02:13.6]} 31... Ke6
{[%clk 0:00:45.1]} 32. Ne2 {[%clk 0:02:13.4]} 32... g5 {[%clk 0:00:44.3]} 33.
Nc3 {[%clk 0:02:09.7]} 33... a6 {[%clk 0:00:38.8]} 34. g4 {[%clk 0:01:59.4]}
34... g6 {[%clk 0:00:23.9]} 35. Ne2 {[%clk 0:01:58.8]} 35... Nd6 {[%clk
0:00:22.6]} 36. f3 {[%clk 0:01:56.6]} 36... f5 {[%clk 0:00:18.4]} 37. h4 {[%clk
0:01:55]} 37... gxh4 {[%clk 0:00:17.8]} 38. Nf4+ {[%clk 0:01:54.9]} 38... Kf7
{[%clk 0:00:12.9]} 39. gxf5 {[%clk 0:01:49.6]} 39... Nxf5 {[%clk 0:00:12.3]} 40.
a4 {[%clk 0:01:44.3]} 40... Ne7 {[%clk 0:00:09.8]} 41. Ke3 {[%clk 0:01:41.8]}
41... g5 {[%clk 0:00:09.7]} 42. Nh3 {[%clk 0:01:39.6]} 42... Kf6 {[%clk
0:00:09.6]} 43. Nf2 {[%clk 0:01:38.9]} 43... Nf5+ {[%clk 0:00:09]} 44. Kd3
{[%clk 0:01:35.3]} 44... Nh6 {[%clk 0:00:09.3]} 45. Nh3 {[%clk 0:01:32.9]} 45...
Kf5 {[%clk 0:00:08.5]} 46. Ke3 {[%clk 0:01:32.6]} 46... g4 {[%clk 0:00:08.2]}
47. fxg4+ {[%clk 0:01:32.6]} 47... Kxg4 {[%clk 0:00:08.6]} 48. Nf2+ {[%clk
0:01:29.7]} 48... Kg3 {[%clk 0:00:09.1]} 49. Nh1+ {[%clk 0:01:27.2]} 49... Kg2
{[%clk 0:00:09.1]} 50. Nf2 {[%clk 0:01:27.2]} 50... h3 {[%clk 0:00:09.6]} 51.
Nxh3 {[%clk 0:01:27]} 51... Kxh3 {[%clk 0:00:10.5]} 52. Kf4 {[%clk 0:01:27.1]}
52... b5 {[%clk 0:00:10.8]} 53. axb5 {[%clk 0:01:25]} 53... axb5 {[%clk
0:00:11.7]} 54. Ke3 {[%clk 0:01:24.9]} 54... Nf5+ {[%clk 0:00:11.4]} 55. Kd3
{[%clk 0:01:24.6]} 55... Kg4 {[%clk 0:00:12]} 56. Kc3 {[%clk 0:01:24.8]} 56...
Kf4 {[%clk 0:00:12.6]} 57. Kb4 {[%clk 0:01:25]} 57... Ke4 {[%clk 0:00:13.2]} 58.
Kxb5 {[%clk 0:01:25.2]} 58... Nxd4+ {[%clk 0:00:14.1]} 59. Kb4 {[%clk
0:01:25.1]} 59... Nf3 {[%clk 0:00:15]} 60. Kc3 {[%clk 0:01:25.2]} 60... Ke3
{[%clk 0:00:15.7]} 61. Kc2 {[%clk 0:01:25.3]} 61... d4 {[%clk 0:00:16.6]} 62.
Kd1 {[%clk 0:01:25.3]} 62... d3 {[%clk 0:00:17.5]} 63. Kc1 {[%clk 0:01:25.1]}
63... Ke2 {[%clk 0:00:18.4]} 64. Kb2 {[%clk 0:01:25.1]} 64... d2 {[%clk
0:00:19.3]} 0-1

[Event "Early-Titled-Tuesday-Blitz-March-05-2024"]
[Site "Chess.com"]
[Date "2024.03.05"]
[Round "8"]
[White "Harry_Rakkel"]
[Black "Bilan_Danila"]
[Result "1-0"]
[WhiteElo "2685"]
[BlackElo "2538"]
[TimeControl "180+1"]
[EndTime "9:29:58 PST"]
[Termination "Harry_Rakkel won by resignation"]

1. e4 {[%clk 0:03:00.9]} 1... c6 {[%clk 0:02:57.6]} 2. d4 {[%clk 0:02:57.9]}
2... d5 {[%clk 0:02:58.5]} 3. exd5 {[%clk 0:02:57.8]} 3... cxd5 {[%clk
0:02:58.9]} 4. Bd3 {[%clk 0:02:57.4]} 4... Nc6 {[%clk 0:02:59.2]} 5. c3 {[%clk
0:02:56.8]} 5... Qc7 {[%clk 0:02:58.5]} 6. Na3 {[%clk 0:02:55.8]} 6... a6 {[%clk
0:02:53.6]} 7. Nc2 {[%clk 0:02:55.4]} 7... Nf6 {[%clk 0:02:52.3]} 8. Ne2 {[%clk
0:02:54.4]} 8... Bg4 {[%clk 0:02:51.2]} 9. f3 {[%clk 0:02:54]} 9... Bd7 {[%clk
0:02:51.1]} 10. Bf4 {[%clk 0:02:53.5]} 10... e5 {[%clk 0:02:51.2]} 11. dxe5
{[%clk 0:02:48.3]} 11... Nxe5 {[%clk 0:02:52.1]} 12. Bxe5 {[%clk 0:02:43.8]}
12... Qxe5 {[%clk 0:02:51.3]} 13. Qd2 {[%clk 0:02:43]} 13... Bc5 {[%clk
0:02:35.6]} 14. O-O-O {[%clk 0:02:41.4]} 14... O-O-O {[%clk 0:02:15.3]} 15. Rde1
{[%clk 0:02:18.5]} 15... Bf2 {[%clk 0:02:09.7]} 16. Ref1 {[%clk 0:02:17.4]}
16... Bc5 {[%clk 0:02:09.3]} 17. Ned4 {[%clk 0:02:11.4]} 17... Rhe8 {[%clk
0:02:03.9]} 18. Re1 {[%clk 0:02:08.4]} 18... Qc7 {[%clk 0:01:47.8]} 19. Qg5
{[%clk 0:02:01]} 19... Bf8 {[%clk 0:01:37.1]} 20. Bf5 {[%clk 0:01:50]} 20... h6
{[%clk 0:01:33.5]} 21. Qg3 {[%clk 0:01:42.9]} 21... Qxg3 {[%clk 0:01:26.8]} 22.
hxg3 {[%clk 0:01:42.1]} 22... Bd6 {[%clk 0:01:27.4]} 23. g4 {[%clk 0:01:35.5]}
23... Bf4+ {[%clk 0:01:24.5]} 24. Kd1 {[%clk 0:01:34]} 24... g6 {[%clk
0:01:23.3]} 25. Bxd7+ {[%clk 0:01:30.8]} 25... Kxd7 {[%clk 0:01:24.2]} 26. Ne2
{[%clk 0:01:27.4]} 26... Bg5 {[%clk 0:01:10.4]} 27. f4 {[%clk 0:01:18.9]} 27...
Nxg4 {[%clk 0:01:10.6]} 28. fxg5 {[%clk 0:01:07.9]} 28... Nf2+ {[%clk
0:01:10.5]} 29. Kd2 {[%clk 0:01:06.8]} 29... Nxh1 {[%clk 0:01:10.7]} 30. Rxh1
{[%clk 0:01:03.8]} 30... hxg5 {[%clk 0:01:11.1]} 31. Ne3 {[%clk 0:00:39.7]}
31... Kd6 {[%clk 0:01:04.4]} 32. Rh7 {[%clk 0:00:33.3]} 32... Re7 {[%clk
0:00:57.7]} 33. Nd4 {[%clk 0:00:30.8]} 33... Rde8 {[%clk 0:00:52.3]} 34. Nec2
{[%clk 0:00:26.9]} 34... f5 {[%clk 0:00:32.6]} 35. Rh6 {[%clk 0:00:24.7]} 35...
Rg8 {[%clk 0:00:29.6]} 36. Nxf5+ {[%clk 0:00:24.1]} 36... Ke6 {[%clk 0:00:21.6]}
37. Nxe7 {[%clk 0:00:23.9]} 37... Kxe7 {[%clk 0:00:22.5]} 38. Rh7+ {[%clk
0:00:23.5]} 38... Kf6 {[%clk 0:00:22.9]} 39. Rxb7 {[%clk 0:00:23.1]} 39... Rh8
{[%clk 0:00:23.2]} 40. Ne3 {[%clk 0:00:22.5]} 40... Rh2 {[%clk 0:00:24.1]} 41.
Nxd5+ {[%clk 0:00:21.1]} 41... Ke5 {[%clk 0:00:25]} 42. Ne3 {[%clk 0:00:20.8]}
1-0

[Event "Early-Titled-Tuesday-Blitz-March-05-2024"]
[Site "Chess.com"]
[Date "2024.03.05"]
[Round "8"]
[White "Gryffindorac8"]
[Black "2KTNGO"]
[Result "0-1"]
[WhiteElo "2384"]
[BlackElo "2515"]
[TimeControl "180+1"]
[EndTime "9:29:58 PST"]
[Termination "2KTNGO won by checkmate"]

1. d4 {[%clk 0:02:56.8]} 1... Nf6 {[%clk 0:02:59.4]} 2. c4 {[%clk 0:02:56.7]}
2... Nc6 {[%clk 0:02:59.1]} 3. Nf3 {[%clk 0:02:55.7]} 3... e6 {[%clk 0:02:57.9]}
4. g3 {[%clk 0:02:55.6]} 4... Bb4+ {[%clk 0:02:56.7]} 5. Bd2 {[%clk 0:02:54.8]}
5... Qe7 {[%clk 0:02:56.7]} 6. Nc3 {[%clk 0:02:51.3]} 6... d5 {[%clk 0:02:53.1]}
7. Bg2 {[%clk 0:02:36.7]} 7... dxc4 {[%clk 0:02:49.8]} 8. O-O {[%clk 0:02:34.8]}
8... O-O {[%clk 0:02:49.3]} 9. Bg5 {[%clk 0:02:05.3]} 9... h6 {[%clk 0:02:42]}
10. Bxf6 {[%clk 0:01:49.8]} 10... Qxf6 {[%clk 0:02:41.1]} 11. Qa4 {[%clk
0:01:23.4]} 11... a6 {[%clk 0:02:39.8]} 12. e4 {[%clk 0:01:01.5]} 12... Qe7
{[%clk 0:02:33.2]} 13. Rfd1 {[%clk 0:00:47.5]} 13... Rb8 {[%clk 0:02:26.7]} 14.
d5 {[%clk 0:00:40.4]} 14... b5 {[%clk 0:02:25.3]} 15. Qc2 {[%clk 0:00:39.2]}
15... Nd8 {[%clk 0:02:16.3]} 16. Nd4 {[%clk 0:00:30.2]} 16... Bc5 {[%clk
0:02:14]} 17. a4 {[%clk 0:00:25.4]} 17... e5 {[%clk 0:02:05.2]} 18. Nf3 {[%clk
0:00:20.7]} 18... Bd7 {[%clk 0:01:59.4]} 19. axb5 {[%clk 0:00:20.6]} 19... axb5
{[%clk 0:01:59.1]} 20. Ne2 {[%clk 0:00:17.3]} 20... Nb7 {[%clk 0:01:57.9]} 21.
b3 {[%clk 0:00:17.1]} 21... Nd6 {[%clk 0:01:56.7]} 22. bxc4 {[%clk 0:00:16.9]}
22... Nxc4 {[%clk 0:01:55.5]} 23. Nd2 {[%clk 0:00:14.9]} 23... Bxf2+ {[%clk
0:01:51.3]} 24. Kxf2 {[%clk 0:00:13.5]} 24... Qc5+ {[%clk 0:01:51.3]} 25. Ke1
{[%clk 0:00:09.2]} 25... f5 {[%clk 0:01:44.3]} 26. Nxc4 {[%clk 0:00:09.2]} 26...
bxc4 {[%clk 0:01:43.3]} 27. Rac1 {[%clk 0:00:08.2]} 27... Rb4 {[%clk 0:01:36.3]}
28. exf5 {[%clk 0:00:06.5]} 28... Bxf5 {[%clk 0:01:33.2]} 29. Be4 {[%clk
0:00:06.5]} 29... Bh3 {[%clk 0:01:28]} 30. Kd2 {[%clk 0:00:05.6]} 30... Rf2
{[%clk 0:01:24.7]} 31. Qc3 {[%clk 0:00:04.9]} 31... Bg4 {[%clk 0:01:17.2]} 32.
Re1 {[%clk 0:00:04.3]} 32... Qa5 {[%clk 0:01:14.5]} 33. Rc2 {[%clk 0:00:03.8]}
33... Qb6 {[%clk 0:00:37.7]} 34. Qxe5 {[%clk 0:00:03.5]} 34... Rb3 {[%clk
0:00:37.2]} 35. Qe8+ {[%clk 0:00:03.5]} 35... Rf8 {[%clk 0:00:36.4]} 36. Qe5
{[%clk 0:00:02.5]} 36... Qe3+ {[%clk 0:00:34.7]} 37. Kd1 {[%clk 0:00:02.7]}
37... Rb1+ {[%clk 0:00:34.7]} 38. Rc1 {[%clk 0:00:02.1]} 38... Rxc1# {[%clk
0:00:34.7]} 0-1

[Event "Early-Titled-Tuesday-Blitz-March-05-2024"]
[Site "Chess.com"]
[Date "2024.03.05"]
[Round "8"]
[White "ChessQueen"]
[Black "viniciusrego"]
[Result "1/2-1/2"]
[WhiteElo "2769"]
[BlackElo "2419"]
[TimeControl "180+1"]
[EndTime "9:30:00 PST"]
[Termination "Game drawn by repetition"]

1. e4 {[%clk 0:02:55.2]} 1... d6 {[%clk 0:02:50.7]} 2. d4 {[%clk 0:02:54.8]}
2... Nf6 {[%clk 0:02:50.6]} 3. Nc3 {[%clk 0:02:55.2]} 3... Nbd7 {[%clk
0:02:50.5]} 4. g4 {[%clk 0:02:52.8]} 4... h6 {[%clk 0:02:49.9]} 5. Bg2 {[%clk
0:02:49]} 5... e5 {[%clk 0:02:49.9]} 6. d5 {[%clk 0:02:41.9]} 6... c6 {[%clk
0:02:40.4]} 7. Be3 {[%clk 0:02:31.7]} 7... cxd5 {[%clk 0:02:33.3]} 8. exd5
{[%clk 0:02:32.1]} 8... Nb6 {[%clk 0:02:28.4]} 9. h3 {[%clk 0:02:10.1]} 9... Nc4
{[%clk 0:02:26.2]} 10. Bc1 {[%clk 0:02:09.9]} 10... Be7 {[%clk 0:02:18.3]} 11.
Qe2 {[%clk 0:02:09.8]} 11... Nb6 {[%clk 0:02:15]} 12. f4 {[%clk 0:02:04]} 12...
exf4 {[%clk 0:02:08.5]} 13. Bxf4 {[%clk 0:02:04.9]} 13... O-O {[%clk 0:02:04.4]}
14. O-O-O {[%clk 0:02:05]} 14... Nfd7 {[%clk 0:02:03.9]} 15. Nf3 {[%clk
0:02:02.5]} 15... Re8 {[%clk 0:02:02.3]} 16. Rhe1 {[%clk 0:01:52.3]} 16... Nf6
{[%clk 0:01:39]} 17. Qd3 {[%clk 0:01:49.6]} 17... Nbd7 {[%clk 0:01:28.9]} 18. g5
{[%clk 0:01:42]} 18... Nc5 {[%clk 0:01:29]} 19. Qd4 {[%clk 0:01:40]} 19... Nh5
{[%clk 0:01:23]} 20. gxh6 {[%clk 0:01:32.8]} 20... Bf6 {[%clk 0:01:22.3]} 21.
Rxe8+ {[%clk 0:01:27.7]} 21... Qxe8 {[%clk 0:01:21.9]} 22. Qd2 {[%clk
0:01:28.3]} 22... Nxf4 {[%clk 0:01:20.5]} 23. Qxf4 {[%clk 0:01:25.9]} 23... Bxc3
{[%clk 0:01:17.9]} 24. bxc3 {[%clk 0:01:26.8]} 24... Qa4 {[%clk 0:01:10.4]} 25.
Qxa4 {[%clk 0:01:05.8]} 25... Nxa4 {[%clk 0:01:11.3]} 26. Kd2 {[%clk 0:00:55.3]}
26... gxh6 {[%clk 0:01:05.9]} 27. Nd4 {[%clk 0:00:55.5]} 27... Bd7 {[%clk
0:01:01.4]} 28. Rf1 {[%clk 0:00:54.7]} 28... Rc8 {[%clk 0:01:01]} 29. Rf3 {[%clk
0:00:54.4]} 29... Nb6 {[%clk 0:00:59.5]} 30. Rg3+ {[%clk 0:00:53.9]} 30... Kf8
{[%clk 0:00:59.6]} 31. Be4 {[%clk 0:00:45.8]} 31... Nc4+ {[%clk 0:00:58.1]} 32.
Kd3 {[%clk 0:00:39.3]} 32... Ne5+ {[%clk 0:00:58.5]} 33. Kd2 {[%clk 0:00:39.5]}
33... Nc4+ {[%clk 0:00:58.4]} 34. Kd3 {[%clk 0:00:34.4]} 34... Ne5+ {[%clk
0:00:49.7]} 35. Ke2 {[%clk 0:00:34.8]} 35... Rc5 {[%clk 0:00:43.7]} 36. Nb3
{[%clk 0:00:32.5]} 36... Rc4 {[%clk 0:00:42.3]} 37. Bg2 {[%clk 0:00:27.9]} 37...
Ra4 {[%clk 0:00:42.6]} 38. Nc1 {[%clk 0:00:27.3]} 38... Bb5+ {[%clk 0:00:40.9]}
39. Ke1 {[%clk 0:00:25.9]} 39... Ra3 {[%clk 0:00:38]} 40. h4 {[%clk 0:00:23.2]}
40... Ra4 {[%clk 0:00:36.7]} 41. Rh3 {[%clk 0:00:21.6]} 41... Rg4 {[%clk
0:00:36.3]} 42. Kf2 {[%clk 0:00:21.9]} 42... Bc4 {[%clk 0:00:33.6]} 43. Nb3
{[%clk 0:00:21.7]} 43... Rf4+ {[%clk 0:00:32.2]} 44. Ke3 {[%clk 0:00:21.8]}
44... Rg4 {[%clk 0:00:31.6]} 45. Kf2 {[%clk 0:00:22.1]} 45... Rf4+ {[%clk
0:00:31.4]} 46. Ke3 {[%clk 0:00:22.5]} 46... Rg4 {[%clk 0:00:27.8]} 47. Kf2
{[%clk 0:00:22.8]} 1/2-1/2

[Event "Early-Titled-Tuesday-Blitz-March-05-2024"]
[Site "Chess.com"]
[Date "2024.03.05"]
[Round "8"]
[White "whiteglovethief"]
[Black "PavelShkapenko"]
[Result "0-1"]
[WhiteElo "2502"]
[BlackElo "2758"]
[TimeControl "180+1"]
[EndTime "9:30:01 PST"]
[Termination "PavelShkapenko won on time"]

1. d4 {[%clk 0:03:00.9]} 1... Nf6 {[%clk 0:02:53.7]} 2. c4 {[%clk 0:02:59.5]}
2... e6 {[%clk 0:02:49.6]} 3. Nf3 {[%clk 0:02:58.6]} 3... Bb4+ {[%clk
0:02:37.1]} 4. Nbd2 {[%clk 0:02:56.4]} 4... O-O {[%clk 0:02:31.4]} 5. a3 {[%clk
0:02:53.4]} 5... Be7 {[%clk 0:02:31.5]} 6. g3 {[%clk 0:02:45.9]} 6... d6 {[%clk
0:02:22.1]} 7. Bg2 {[%clk 0:02:45.7]} 7... Nbd7 {[%clk 0:02:22.4]} 8. O-O {[%clk
0:02:43.8]} 8... e5 {[%clk 0:02:22.9]} 9. b4 {[%clk 0:02:42.2]} 9... Re8 {[%clk
0:02:20.9]} 10. Qc2 {[%clk 0:02:36.8]} 10... Bf8 {[%clk 0:02:18.3]} 11. Bb2
{[%clk 0:02:35.9]} 11... e4 {[%clk 0:02:16.7]} 12. Ng5 {[%clk 0:02:35.5]} 12...
e3 {[%clk 0:02:08.3]} 13. fxe3 {[%clk 0:02:27.1]} 13... Rxe3 {[%clk 0:02:04.6]}
14. Bd5 {[%clk 0:02:08.7]} 14... Re7 {[%clk 0:01:59.6]} 15. Nde4 {[%clk
0:01:47.2]} 15... h6 {[%clk 0:01:52.8]} 16. Nxf6+ {[%clk 0:01:43.3]} 16... Nxf6
{[%clk 0:01:53.4]} 17. Rxf6 {[%clk 0:01:12]} 17... hxg5 {[%clk 0:01:53.1]} 18.
Qg6 {[%clk 0:01:08.1]} 18... Be6 {[%clk 0:01:16.2]} 19. Rxe6 {[%clk 0:00:53.7]}
19... fxg6 {[%clk 0:01:12.7]} 20. Rxe7+ {[%clk 0:00:45.4]} 20... Kh7 {[%clk
0:01:11.5]} 21. Rf7 {[%clk 0:00:42]} 21... c6 {[%clk 0:01:09]} 22. Be6 {[%clk
0:00:41.1]} 22... d5 {[%clk 0:01:05.2]} 23. Raf1 {[%clk 0:00:40.3]} 23... Be7
{[%clk 0:01:01.2]} 24. c5 {[%clk 0:00:35.7]} 24... Kh6 {[%clk 0:00:58.5]} 25. e4
{[%clk 0:00:33.5]} 25... g4 {[%clk 0:00:51.3]} 26. e5 {[%clk 0:00:29.3]} 26...
Bg5 {[%clk 0:00:51.3]} 27. Rxb7 {[%clk 0:00:26]} 27... a5 {[%clk 0:00:48.3]} 28.
Rff7 {[%clk 0:00:24.1]} 28... axb4 {[%clk 0:00:43.6]} 29. Rxg7 {[%clk
0:00:21.8]} 29... Be3+ {[%clk 0:00:41.3]} 30. Kg2 {[%clk 0:00:21.1]} 30... bxa3
{[%clk 0:00:41.8]} 31. Rh7+ {[%clk 0:00:17.2]} 31... Kg5 {[%clk 0:00:42]} 32.
Ba1 {[%clk 0:00:11.3]} 32... Rb8 {[%clk 0:00:38.7]} 33. Rbf7 {[%clk 0:00:10.5]}
33... Rb1 {[%clk 0:00:36.1]} 34. h4+ {[%clk 0:00:07.3]} 34... gxh3+ {[%clk
0:00:35.8]} 35. Kxh3 {[%clk 0:00:05.5]} 35... Rxa1 {[%clk 0:00:30.5]} 36. Rh4
{[%clk 0:00:06.1]} 36... Rh1+ {[%clk 0:00:29.8]} 37. Kg2 {[%clk 0:00:03.8]}
37... Rxh4 {[%clk 0:00:30.3]} 38. gxh4+ {[%clk 0:00:03.5]} 38... Kh6 {[%clk
0:00:30.8]} 0-1

[Event "Early-Titled-Tuesday-Blitz-March-05-2024"]
[Site "Chess.com"]
[Date "2024.03.05"]
[Round "8"]
[White "ElVital"]
[Black "JohnWhite1952"]
[Result "1-0"]
[WhiteElo "2339"]
[BlackElo "2011"]
[TimeControl "180+1"]
[EndTime "9:30:01 PST"]
[Termination "ElVital won on time"]

1. e4 {[%clk 0:03:00.9]} 1... e6 {[%clk 0:02:59]} 2. Nc3 {[%clk 0:02:57.9]} 2...
d5 {[%clk 0:02:59.9]} 3. Nf3 {[%clk 0:02:58.5]} 3... dxe4 {[%clk 0:02:56.6]} 4.
Nxe4 {[%clk 0:02:59.4]} 4... Nf6 {[%clk 0:02:57.3]} 5. Nxf6+ {[%clk 0:02:58.9]}
5... Qxf6 {[%clk 0:02:57.1]} 6. d4 {[%clk 0:02:59.1]} 6... Nc6 {[%clk
0:02:53.1]} 7. Bg5 {[%clk 0:02:57.3]} 7... Qf5 {[%clk 0:02:52.2]} 8. Bd3 {[%clk
0:02:57]} 8... Qa5+ {[%clk 0:02:49.8]} 9. Bd2 {[%clk 0:02:54.2]} 9... Qb6 {[%clk
0:02:48.6]} 10. O-O {[%clk 0:02:49.9]} 10... Nxd4 {[%clk 0:02:26.6]} 11. Nxd4
{[%clk 0:02:48]} 11... Qxd4 {[%clk 0:02:26.3]} 12. Qh5 {[%clk 0:02:41.3]} 12...
Bd7 {[%clk 0:02:12.7]} 13. Bc3 {[%clk 0:02:36.2]} 13... Qd6 {[%clk 0:02:06.3]}
14. Be5 {[%clk 0:02:34.4]} 14... Qb6 {[%clk 0:02:04.4]} 15. a4 {[%clk 0:02:31]}
15... Qc5 {[%clk 0:01:38.9]} 16. b4 {[%clk 0:02:25.5]} 16... Qxb4 {[%clk
0:01:34.3]} 17. Rab1 {[%clk 0:02:19]} 17... Qxa4 {[%clk 0:01:27.7]} 18. Rxb7
{[%clk 0:02:18.4]} 18... Rc8 {[%clk 0:01:13.8]} 19. Ra1 {[%clk 0:02:14.6]} 19...
Qc6 {[%clk 0:01:12]} 20. Raxa7 {[%clk 0:02:11.9]} 20... Bd6 {[%clk 0:01:02.3]}
21. Bxg7 {[%clk 0:02:05.5]} 21... Rg8 {[%clk 0:00:56.5]} 22. Qxh7 {[%clk
0:02:05.3]} 22... Ke7 {[%clk 0:00:49.9]} 23. Qh4+ {[%clk 0:01:56.2]} 23... Ke8
{[%clk 0:00:48]} 24. Qf6 {[%clk 0:01:53.6]} 24... Bf8 {[%clk 0:00:45.8]} 25. Bb5
{[%clk 0:01:15.9]} 25... Qd5 {[%clk 0:00:31.8]} 26. Rxc7 {[%clk 0:01:00.3]}
26... Qd1+ {[%clk 0:00:29.7]} 27. Bf1 {[%clk 0:00:59.4]} 27... Rxg7 {[%clk
0:00:21.6]} 28. Rxd7 {[%clk 0:00:53]} 28... Qxd7 {[%clk 0:00:10.2]} 29. Rxd7
{[%clk 0:00:53.9]} 29... Kxd7 {[%clk 0:00:10.1]} 30. Bb5+ {[%clk 0:00:54.5]}
30... Kd6 {[%clk 0:00:08.1]} 31. Qd4+ {[%clk 0:00:53]} 31... Kc7 {[%clk
0:00:06.4]} 32. Qa7+ {[%clk 0:00:52.7]} 32... Kd6 {[%clk 0:00:05.1]} 33. Qd7+
{[%clk 0:00:52.3]} 33... Ke5 {[%clk 0:00:04]} 34. Qxc8 {[%clk 0:00:51.8]} 34...
Bd6 {[%clk 0:00:02.2]} 35. Qc3+ {[%clk 0:00:39.7]} 1-0

[Event "Early-Titled-Tuesday-Blitz-March-05-2024"]
[Site "Chess.com"]
[Date "2024.03.05"]
[Round "8"]
[White "lagunanivaria"]
[Black "mary-sanna"]
[Result "1-0"]
[WhiteElo "2443"]
[BlackElo "2232"]
[TimeControl "180+1"]
[EndTime "9:30:03 PST"]
[Termination "lagunanivaria won on time"]

1. e4 {[%clk 0:02:56.3]} 1... c5 {[%clk 0:02:59.8]} 2. Nf3 {[%clk 0:02:55.8]}
2... Nc6 {[%clk 0:03:00]} 3. Bb5 {[%clk 0:02:55.5]} 3... g6 {[%clk 0:02:57.9]}
4. Bxc6 {[%clk 0:02:54.2]} 4... bxc6 {[%clk 0:02:57.6]} 5. O-O {[%clk
0:02:53.9]} 5... Bg7 {[%clk 0:02:57.8]} 6. h3 {[%clk 0:02:54]} 6... Qc7 {[%clk
0:02:56.9]} 7. Re1 {[%clk 0:02:54.6]} 7... d6 {[%clk 0:02:56.6]} 8. c3 {[%clk
0:02:54.7]} 8... Nf6 {[%clk 0:02:55.2]} 9. d4 {[%clk 0:02:55.4]} 9... cxd4
{[%clk 0:02:54.6]} 10. cxd4 {[%clk 0:02:56.3]} 10... O-O {[%clk 0:02:54.3]} 11.
Nc3 {[%clk 0:02:56.4]} 11... c5 {[%clk 0:02:47.6]} 12. Be3 {[%clk 0:02:51.2]}
12... cxd4 {[%clk 0:02:41.8]} 13. Bxd4 {[%clk 0:02:52.1]} 13... Rb8 {[%clk
0:02:40.8]} 14. Rc1 {[%clk 0:02:50.8]} 14... Qa5 {[%clk 0:02:29.8]} 15. e5
{[%clk 0:02:35.1]} 15... dxe5 {[%clk 0:02:25.6]} 16. Rxe5 {[%clk 0:02:30.8]}
16... Qd8 {[%clk 0:02:10.3]} 17. Bxa7 {[%clk 0:02:18.9]} 17... Rxb2 {[%clk
0:02:06.2]} 18. Qxd8 {[%clk 0:02:16]} 18... Rxd8 {[%clk 0:02:06]} 19. Rxe7
{[%clk 0:02:16.5]} 19... Be6 {[%clk 0:01:48.1]} 20. Bd4 {[%clk 0:02:13.8]} 20...
Nd5 {[%clk 0:01:10.4]} 21. Nxd5 {[%clk 0:02:09.5]} 21... Bxd4 {[%clk 0:01:09.5]}
22. Nxd4 {[%clk 0:02:06.2]} 22... Bxd5 {[%clk 0:01:03.2]} 23. Rcc7 {[%clk
0:01:33.4]} 23... Rxa2 {[%clk 0:01:00]} 24. Ne2 {[%clk 0:01:19.7]} 24... Ra1+
{[%clk 0:00:34]} 25. Kh2 {[%clk 0:01:16.4]} 25... Rf1 {[%clk 0:00:32.6]} 26. Kg3
{[%clk 0:00:58.5]} 26... Kg7 {[%clk 0:00:20.7]} 27. Nd4 {[%clk 0:00:50.2]} 27...
Rg1 {[%clk 0:00:15.9]} 28. Nf3 {[%clk 0:00:48]} 28... Rd1 {[%clk 0:00:09.4]} 29.
Ne5 {[%clk 0:00:43.8]} 29... Rf8 {[%clk 0:00:07]} 30. f3 {[%clk 0:00:32.7]}
30... h5 {[%clk 0:00:06]} 31. h4 {[%clk 0:00:32.2]} 31... Be6 {[%clk 0:00:03.3]}
32. Rxe6 {[%clk 0:00:30.7]} 32... Re1 {[%clk 0:00:02.6]} 33. Ree7 {[%clk
0:00:30.9]} 33... Kf6 {[%clk 0:00:02.8]} 34. Ng4+ {[%clk 0:00:29.2]} 34... hxg4
{[%clk 0:00:02.4]} 35. Rxe1 {[%clk 0:00:29]} 35... gxf3 {[%clk 0:00:02.7]} 36.
gxf3 {[%clk 0:00:29.9]} 36... Rh8 {[%clk 0:00:01.9]} 37. Rc6+ {[%clk 0:00:30.1]}
37... Kg7 {[%clk 0:00:01.5]} 38. Re7 {[%clk 0:00:30.6]} 1-0